bitfinex/quotes_SOLUSD_20240620
["timestamp","ask_amount","ask_price","bid_price","bid_amount"]
[1718893015199,42.41,134.49,134.34,18.6091]
[1718893015200,42.41,134.49,134.35,18.6069]
[1718893015367,42.41,134.49,134.39,7.4406]
[1718893015998,20.0,134.49,134.32,99.85]
[1718893016190,20.0,134.54,134.41,7.4399]
[1718893016485,20.0,134.54,134.4,7.4402]
[1718893017187,22.41,134.53,134.42,7.439]
[1718893017385,20.0,134.54,134.42,7.439]
[1718893017386,42.41,134.52,134.42,7.439]
[1718893017593,22.41,134.52,134.42,7.439]
[1718893017762,20.0,134.51,134.42,7.439]
[1718893018259,20.0,134.51,134.43,7.4387]
[1718893018680,42.41,134.53,134.43,7.4387]
[1718893019190,7.0627022,134.55,134.42,28.7452]
[1718893019379,60.06313496,134.6,134.48,7.4358]
[1718893019565,60.06313496,134.6,134.42,28.7452]
[1718893020182,22.41,134.6,134.48,7.4359]
[1718893020971,22.41,134.6,134.49,7.4354]
[1718893021269,60.06313496,134.6,134.48,7.436]
[1718893021674,60.06313496,134.6,134.42,6.3352]
[1718893021894,60.06313496,134.6,134.48,7.4358]
[1718893022188,60.06313496,134.6,134.42,28.7452]
[1718893022367,20.0,134.59,134.42,28.7452]
[1718893022563,42.41,134.59,134.49,7.4354]
[1718893022787,42.41,134.59,134.42,6.3352]
[1718893023295,42.41,134.59,134.45,7.4376]
[1718893023469,42.41,134.59,134.47,7.4364]
[1718893023667,42.41,134.59,134.42,6.3352]
[1718893023878,42.41,134.59,134.45,18.5937]
[1718893024073,42.41,134.59,134.46,18.5916]
[1718893024281,42.41,134.59,134.5,7.4347]
[1718893024566,42.41,134.59,134.51,7.4342]
[1718893024761,42.41,134.59,134.5,7.4347]
[1718893025084,42.41,134.59,134.51,7.4341]
[1718893025085,20.0,134.59,134.51,7.4341]
[1718893025284,37.18997109,134.66,134.51,7.4341]
[1718893025469,37.52260722,134.64,134.5,7.4345]
[1718893025664,7.72071368,134.65,134.5,7.4345]
[1718893025875,22.41,134.63,134.5,7.4345]
[1718893026174,57.79125177,134.62,134.52,7.4335]
[1718893026376,20.0,134.61,134.52,7.4335]
[1718893026578,20.0,134.61,134.49,18.5874]
[1718893026579,20.0,134.61,134.51,7.4341]
[1718893026781,20.0,134.61,134.52,7.4338]
[1718893026988,80.19608379,134.61,134.52,7.4338]
[1718893027289,57.78608379,134.61,134.54,7.4323]
[1718893027487,37.52260722,134.64,134.46,16.1395]
[1718893027692,20.0,134.63,134.53,7.433]
[1718893027866,37.79125177,134.62,134.53,7.433]
[1718893028073,57.78608379,134.61,134.54,7.4325]
[1718893028392,37.79125177,134.62,134.55,8.30464476]
[1718893028681,37.87024773,134.63,134.56,7.4315]
[1718893028892,37.52260722,134.64,134.57,0.87261505]
[1718893029075,59.93260722,134.64,134.56,0.87267989]
[1718893029273,37.52260722,134.64,134.52,13.5555]
[1718893029469,37.52260722,134.64,134.49,22.41]
[1718893029688,37.52260722,134.64,134.52,18.5841]
[1718893029900,37.52260722,134.64,134.56,7.4313]
[1718893030069,20.0,134.63,134.48,38.8774]
[1718893030268,37.52260722,134.64,134.56,7.4314]
[1718893030694,59.93260722,134.64,134.54,7.4323]
[1718893030892,42.41,134.63,134.53,7.4331]
[1718893031207,42.41,134.63,134.49,18.5886]
[1718893031499,42.41,134.63,134.51,7.4341]
[1718893031666,42.41,134.63,134.5,18.5862]
[1718893031860,42.41,134.63,134.48,38.8774]
[1718893031861,20.0,134.63,134.55,7.4318]
[1718893032074,42.41,134.63,134.48,38.8774]
[1718893032290,20.0,134.63,134.48,6.2674]
[1718893032469,20.0,134.63,134.48,18.59]
[1718893032676,57.87024773,134.63,134.44,6.0797]
[1718893032875,57.87024773,134.63,134.41,15.5784]
[1718893032876,55.02,134.62,134.41,15.5784]
[1718893033103,22.41,134.59,134.41,15.5784]
[1718893033274,22.41,134.59,134.41,34.1769]
[1718893033469,22.41,134.57,134.47,7.4364]
[1718893033871,22.41,134.55,134.43,18.5968]
[1718893034067,20.0,134.54,134.46,7.437]
[1718893034291,20.0,134.56,134.41,15.5784]
[1718893034491,20.0,134.56,134.43,7.4386]
[1718893034769,20.0,134.59,134.41,34.177]
[1718893034982,20.0,134.59,134.46,7.4368]
[1718893035190,22.41,134.58,134.41,15.5784]
[1718893035491,22.41,134.56,134.4,38.6897]
[1718893035693,22.41,134.54,134.4,38.6897]
[1718893035890,20.0,134.53,134.44,7.438]
[1718893036075,42.41,134.53,134.4,38.6897]
[1718893036280,42.41,134.53,134.41,7.4396]
[1718893036596,42.41,134.53,134.4,7.4403]
[1718893036893,42.41,134.53,134.4,7.4404]
[1718893037277,42.41,134.53,134.36,38.9193]
[1718893037278,42.41,134.53,134.36,57.5259]
[1718893037495,42.41,134.53,134.37,7.4417]
[1718893037698,42.41,134.53,134.34,29.813644]
[1718893037990,75.02,134.53,134.34,29.813644]
[1718893038202,22.41,134.51,134.33,15.0383]
[1718893038372,22.41,134.49,134.32,51.222]
[1718893038572,22.41,134.49,134.34,7.4435]
[1718893038775,22.41,134.47,134.35,7.4431]
[1718893038979,42.41,134.46,134.36,7.4422]
[1718893039189,22.41,134.46,134.31,6.2268]
[1718893039490,45.0,134.52,134.38,7.4411]
[1718893039491,20.0,134.45,134.38,7.4411]
[1718893039686,20.0,134.45,134.35,18.608]
[1718893039996,22.41,134.51,134.31,80.878266]
[1718893040180,22.41,134.51,134.31,90.19433773]
[1718893040380,22.41,134.49,134.37,7.4415]
[1718893040697,42.41,134.48,134.31,67.77433773]
[1718893040900,42.41,134.47,134.37,7.442]
[1718893041101,20.0,134.5,134.31,67.77433773]
[1718893041278,20.0,134.5,134.42,7.439]
[1718893041591,7.07156783,134.54,134.37,51.2141]
[1718893041795,32.61,134.56,134.33,32.61]
[1718893042176,1.72587674,134.55,134.42,7.4391]
[1718893042391,1.72587674,134.55,134.43,7.4387]
[1718893042599,1.72587674,134.55,134.39,18.602]
[1718893042801,1.72587674,134.55,134.41,18.5997]
[1718893043091,1.72587674,134.55,134.48,7.4355]
[1718893043293,1.72587674,134.55,134.47,7.4362]
[1718893043472,37.11410091,134.58,134.47,7.4362]
[1718893043673,37.11410091,134.58,134.43,18.5969]
[1718893043891,37.11410091,134.58,134.46,7.4369]
[1718893045188,37.11410091,134.58,134.47,7.4364]
[1718893045385,22.41,134.56,134.47,7.4364]
[1718893045571,20.0,134.55,134.48,7.4356]
[1718893045775,42.41,134.57,134.47,7.4364]
[1718893046185,42.41,134.57,134.47,18.5914]
[1718893046186,20.0,134.57,134.47,18.5914]
[1718893046390,37.52260722,134.64,134.5,7.4346]
[1718893046587,22.41,134.62,134.49,7.435]
[1718893046794,22.41,134.61,134.49,7.435]
[1718893046996,42.41,134.61,134.49,7.435]
[1718893047901,42.41,134.61,134.47,7.4363]
[1718893048397,22.41,134.59,134.49,7.4352]
[1718893048580,20.0,134.61,134.5,7.4349]
[1718893048581,22.41,134.57,134.5,7.4349]
[1718893048782,22.41,134.57,134.41,22.41]
[1718893048995,22.41,134.57,134.4,46.35596156]
[1718893049195,42.41,134.56,134.47,7.4365]
[1718893049396,20.0,134.55,134.47,7.4365]
[1718893049697,42.41,134.55,134.42,7.4392]
[1718893049901,42.41,134.55,134.36,7.463]
[1718893049902,42.41,134.55,134.41,7.4398]
[1718893050201,42.41,134.55,134.42,7.4391]
[1718893050402,42.41,134.55,134.41,7.4396]
[1718893050786,42.41,134.55,134.42,7.4392]
[1718893051020,42.41,134.55,134.43,7.4387]
[1718893051386,42.41,134.55,134.39,18.6017]
[1718893051704,22.41,134.53,134.4,7.4404]
[1718893052000,45.0,134.54,134.4,7.4404]
[1718893052001,22.41,134.51,134.4,7.4404]
[1718893052392,22.41,134.49,134.4,7.4404]
[1718893052593,22.41,134.47,134.39,7.4408]
[1718893052893,42.41,134.46,134.35,7.443]
[1718893053104,42.41,134.46,134.36,7.4425]
[1718893053398,42.41,134.46,134.32,18.612]
[1718893053783,42.41,134.46,134.33,18.6097]
[1718893053980,42.41,134.46,134.31,29.821466]
[1718893054195,42.41,134.46,134.31,37.266866]
[1718893054504,22.41,134.43,134.29,7.446]
[1718893055000,22.41,134.41,134.27,18.619]
[1718893055209,20.0,134.4,134.32,7.4443]
[1718893055390,22.41,134.4,134.33,7.444]
[1718893055581,20.0,134.39,134.32,7.4448]
[1718893055783,20.0,134.42,134.31,7.4452]
[1718893055983,20.0,134.42,134.32,7.4445]
[1718893056200,20.0,134.46,134.32,7.4445]
[1718893056500,22.41,134.45,134.34,7.4436]
[1718893056705,22.41,134.43,134.29,18.6152]
[1718893056897,22.41,134.43,134.28,32.63]
[1718893057096,22.41,134.43,134.33,7.4441]
[1718893057399,22.41,134.43,134.31,7.445]
[1718893057609,22.41,134.42,134.32,7.4448]
[1718893058116,22.41,134.42,134.33,7.444]
[1718893058407,14.58565298,134.48,134.38,7.4412]
[1718893058606,6.84364794,134.48,134.36,7.4426]
[1718893058828,5.51532624,134.51,134.29,23.0163]
[1718893059108,24.13587674,134.49,134.3,7.4459]
[1718893059304,24.13587674,134.49,134.3,7.446]
[1718893059506,27.92532624,134.49,134.31,7.4453]
[1718893059695,22.41,134.47,134.32,7.4446]
[1718893059897,22.41,134.45,134.32,7.4446]
[1718893060104,22.41,134.45,134.29,1.49103875]
[1718893060298,275.81,134.43,134.27,22.41]
[1718893060500,22.41,134.41,134.26,7.4482]
[1718893060805,22.41,134.41,134.22,29.84108]
[1718893061015,22.41,134.39,134.23,18.6234]
[1718893061196,22.41,134.39,134.28,7.447]
[1718893061391,253.4,134.43,134.26,18.6197]
[1718893061392,22.41,134.37,134.26,18.6197]
[1718893061586,22.41,134.37,134.22,29.84108]
[1718893061587,20.0,134.38,134.31,7.445]
[1718893061787,253.4,134.43,134.35,7.4427]
[1718893061999,253.4,134.43,134.22,29.84108]
[1718893062205,20.0,134.42,134.26,22.41]
[1718893062387,20.0,134.46,134.3,18.6148]
[1718893062587,22.41,134.45,134.34,7.4436]
[1718893062812,42.41,134.44,134.33,7.4442]
[1718893063103,42.41,134.44,134.28,48.283]
[1718893063309,6.94537032,134.47,134.28,48.283]
[1718893063493,255.12587674,134.48,134.34,7.4435]
[1718893063688,22.41,134.47,134.35,7.4431]
[1718893063890,22.41,134.47,134.34,18.6093]
[1718893064093,22.41,134.47,134.36,7.4424]
[1718893064293,22.41,134.47,134.35,7.4431]
[1718893064502,260.35800592,134.48,134.31,32.63]
[1718893064503,20.0,134.46,134.32,22.41]
[1718893064711,20.0,134.47,134.31,32.63]
[1718893064909,14.78648964,134.5,134.31,55.04]
[1718893065111,7.04558501,134.5,134.39,7.4406]
[1718893065313,7.73985613,134.53,134.41,7.4397]
[1718893065611,7.73985613,134.53,134.43,7.4385]
[1718893065820,253.4,134.59,134.36,44.83]
[1718893065821,7.13819776,134.54,134.36,44.83]
[1718893065993,253.4,134.59,134.44,7.4382]
[1718893066190,7.73707634,134.58,134.44,7.4382]
[1718893066390,7.73707634,134.58,134.35,32.63]
[1718893066607,22.41,134.57,134.43,7.4387]
[1718893066797,22.41,134.57,134.41,7.4397]
[1718893067112,22.41,134.57,134.39,32.63]
[1718893067597,22.41,134.57,134.44,7.4379]
[1718893067801,22.41,134.57,134.39,32.63]
[1718893068129,22.41,134.57,134.43,18.5965]
[1718893068414,22.41,134.55,134.45,7.4372]
[1718893068592,42.41,134.54,134.43,7.4383]
[1718893068793,22.41,134.54,134.43,7.4383]
[1718893069094,20.0,134.53,134.45,7.4374]
[1718893069401,42.41,134.53,134.45,7.4374]
[1718893069602,20.0,134.53,134.41,18.5985]
[1718893069910,20.0,134.57,134.42,7.439]
[1718893070106,22.41,134.56,134.43,7.4387]
[1718893070413,20.0,134.57,134.39,51.2323]
[1718893070414,22.41,134.54,134.42,7.4388]
[1718893070598,22.41,134.52,134.37,18.6051]
[1718893070915,42.41,134.51,134.42,7.4388]
[1718893071097,7.73707634,134.58,134.45,7.4374]
[1718893071420,20.0,134.57,134.46,7.4368]
[1718893071626,20.0,134.57,134.42,18.5972]
[1718893071931,20.0,134.57,134.44,7.4379]
[1718893072109,22.41,134.56,134.44,7.4379]
[1718893072431,22.41,134.54,134.43,7.4387]
[1718893072604,42.41,134.53,134.39,24.6557]
[1718893072802,22.41,134.53,134.37,18.6052]
[1718893072995,22.41,134.51,134.4,7.4402]
[1718893073318,22.41,134.51,134.42,7.439]
[1718893073615,42.41,134.5,134.36,48.5346]
[1718893073824,42.41,134.5,134.42,7.439]
[1718893074116,20.0,134.5,134.44,7.4381]
[1718893074291,42.41,134.51,134.4,18.5998]
[1718893074492,42.41,134.51,134.42,7.439]
[1718893074713,20.0,134.51,134.43,16.55340791]
[1718893074915,40.32707634,134.58,134.44,8.77437056]
[1718893074916,20.0,134.57,134.44,8.77437056]
[1718893075091,22.75,134.56,134.44,8.77437056]
[1718893075294,20.0,134.55,134.43,0.17]
[1718893075500,0.34,134.54,134.43,7.6087]
[1718893075796,0.34,134.54,134.43,7.6084]
[1718893076432,22.41,134.54,134.43,7.6084]
[1718893076724,42.75,134.53,134.44,7.4381]
[1718893076906,20.0,134.52,134.44,7.4381]
[1718893077219,20.0,134.52,134.45,7.4376]
[1718893077728,0.34,134.53,134.45,7.4376]
[1718893077943,22.41,134.53,134.45,7.4376]
[1718893078218,20.34,134.54,134.43,0.17]
[1718893078411,0.34,134.54,134.49,7.4354]
[1718893078612,0.34,134.54,134.43,0.17]
[1718893078613,0.34,134.54,134.44,18.7686]
[1718893078795,0.34,134.54,134.48,7.436]
[1718893079002,0.34,134.54,134.49,1.94333758]
[1718893079312,0.34,134.54,134.49,3.51829054]
[1718893079699,0.34,134.54,134.51,7.4339]
[1718893079901,0.34,134.54,134.52,7.4333]
[1718893080115,0.34,134.54,134.53,7.4332]
[1718893080328,0.34,134.54,134.45,48.4781]
[1718893080500,0.34,134.54,134.5,7.4346]
[1718893080701,0.34,134.54,134.51,7.4343]
[1718893081102,0.34,134.54,134.52,1.48612968]
[1718893081321,0.34,134.54,134.51,1.69109402]
[1718893081526,0.34,134.54,134.5,7.4348]
[1718893081728,0.34,134.54,134.51,7.4343]
[1718893081900,0.34,134.54,134.53,7.4332]
[1718893082096,0.34,134.54,134.52,7.4336]
[1718893082405,0.34,134.54,134.45,48.4781]
[1718893082817,0.34,134.54,134.48,7.4357]
[1718893083121,0.34,134.54,134.45,7.4376]
[1718893083305,0.34,134.54,134.44,26.2064]
[1718893083506,0.34,134.54,134.47,7.4364]
[1718893083819,0.34,134.54,134.43,0.17]
[1718893083994,0.34,134.54,134.46,18.5924]
[1718893084332,0.34,134.53,134.5,7.4348]
[1718893084500,0.34,134.55,134.47,1.48575432]
[1718893084834,0.34,134.55,134.49,7.4351]
[1718893085040,0.34,134.55,134.47,2.93885342]
[1718893085245,0.34,134.55,134.43,18.5957]
[1718893085449,0.34,134.55,134.44,20.0]
[1718893085745,0.34,134.55,134.52,7.4337]
[1718893085934,0.34,134.55,134.5,7.4349]
[1718893086133,0.34,134.55,134.44,20.0]
[1718893086443,0.34,134.55,134.42,20.17]
[1718893086642,0.34,134.55,134.46,7.4367]
[1718893087927,22.41,134.55,134.46,7.4367]
[1718893088126,0.34,134.54,134.46,7.4367]
[1718893088330,0.34,134.54,134.43,0.17]
[1718893088628,0.34,134.54,134.49,7.4353]
[1718893088819,0.17,134.53,134.49,7.4353]
[1718893089020,0.17,134.54,134.5,1.4607271]
[1718893089525,0.17,134.54,134.46,7.4369]
[1718893090317,42.75,134.55,134.46,7.4367]
[1718893090518,42.75,134.55,134.45,7.4372]
[1718893090718,42.75,134.55,134.46,0.45896104]
[1718893090945,42.75,134.55,134.46,7.4369]
[1718893091239,42.75,134.55,134.47,0.4645743]
[1718893091437,42.75,134.55,134.43,7.4385]
[1718893091742,42.75,134.55,134.42,7.7791]
[1718893092836,42.75,134.55,134.42,0.34]
[1718893093222,42.75,134.55,134.42,7.7793]
[1718893093432,42.75,134.55,134.42,0.34]
[1718893093641,42.75,134.55,134.42,7.7791]
[1718893093938,42.75,134.55,134.42,0.34]
[1718893094141,42.75,134.55,134.45,7.4373]
[1718893094317,42.75,134.55,134.44,7.438]
[1718893094516,42.75,134.55,134.42,0.34]
[1718893094947,42.75,134.55,134.47,7.4362]
[1718893095249,22.75,134.55,134.43,7.4387]
[1718893095545,22.75,134.55,134.47,7.4364]
[1718893095919,0.34,134.55,134.46,7.4369]
[1718893096121,0.17,134.54,134.45,7.4374]
[1718893096431,0.34,134.56,134.44,7.4382]
[1718893096432,22.41,134.55,134.44,7.4382]
[1718893096742,22.41,134.53,134.44,7.4382]
[1718893096946,22.41,134.53,134.45,7.4375]
[1718893097125,22.41,134.53,134.46,7.437]
[1718893097327,0.34,134.54,134.47,1.4849187]
[1718893097629,0.17,134.53,134.47,7.4362]
[1718893097952,0.34,134.55,134.46,18.5918]
[1718893098121,0.17,134.55,134.43,6.6236]
[1718893098322,0.34,134.56,134.43,6.6236]
[1718893098722,0.34,134.56,134.43,7.4384]
[1718893099445,0.34,134.56,134.42,7.7792]
[1718893099652,0.34,134.56,134.42,0.34]
[1718893099859,22.41,134.55,134.42,0.34]
[1718893100030,22.41,134.53,134.42,7.7793]
[1718893100223,22.41,134.53,134.42,0.34]
[1718893100430,22.41,134.51,134.42,0.34]
[1718893100742,42.41,134.5,134.42,0.34]
[1718893100933,22.41,134.5,134.42,0.34]
[1718893101456,20.0,134.52,134.42,7.7791]
[1718893101739,20.0,134.53,134.46,7.4369]
[1718893101942,0.34,134.54,134.42,0.34]
[1718893102325,0.34,134.54,134.46,7.4366]
[1718893102527,0.34,134.54,134.41,0.34]
[1718893103052,20.34,134.55,134.41,0.34]
[1718893103231,0.17,134.54,134.45,7.4376]
[1718893103434,0.17,134.54,134.41,18.9385]
[1718893103637,0.17,134.54,134.42,20.0887269]
[1718893103839,0.17,134.54,134.43,1.83131624]
[1718893104045,42.75,134.55,134.43,1.49131624]
[1718893104336,20.0,134.54,134.46,7.4368]
[1718893104535,0.34,134.53,134.46,7.4368]
[1718893105138,0.34,134.53,134.44,9.08694867]
[1718893105343,0.34,134.53,134.45,7.4375]
[1718893105539,0.34,134.53,134.42,6.6222]
[1718893105744,0.34,134.53,134.43,0.34]
[1718893106253,0.34,134.53,134.45,7.4376]
[1718893106556,0.34,134.53,134.43,7.7785]
[1718893106761,0.34,134.53,134.43,0.34]
[1718893106927,22.41,134.52,134.43,0.34]
[1718893107332,42.41,134.51,134.43,0.34]
[1718893107652,42.41,134.51,134.42,7.7793]
[1718893108049,42.41,134.51,134.42,0.34]
[1718893108450,42.41,134.51,134.41,0.34]
[1718893109351,22.41,134.49,134.41,0.34]
[1718893109560,22.41,134.47,134.41,0.34]
[1718893109869,22.41,134.45,134.41,0.34]
[1718893110073,22.41,134.45,134.4,0.34]
[1718893110282,22.41,134.43,134.4,0.34]
[1718893110565,20.0,134.44,134.4,0.34]
[1718893110773,5.50759989,134.52,134.4,7.7803]
[1718893110942,20.0,134.51,134.4,0.34]
[1718893111141,20.34,134.53,134.4,7.7804]
[1718893111363,22.41,134.51,134.4,0.34]
[1718893111560,22.41,134.49,134.4,0.34]
[1718893111941,20.0,134.48,134.4,0.34]
[1718893112139,10.4277051,134.53,134.4,0.34]
[1718893112140,7.20640961,134.53,134.4,0.34]
[1718893112461,22.41,134.51,134.4,0.34]
[1718893112651,20.0,134.52,134.4,0.34]
[1718893112652,22.41,134.49,134.4,0.34]
[1718893112850,22.41,134.47,134.39,0.34]
[1718893113044,22.41,134.47,134.38,0.34]
[1718893113271,42.41,134.46,134.4,0.17]
[1718893113563,22.41,134.46,134.38,0.34]
[1718893113770,20.0,134.45,134.38,0.34]
[1718893114145,42.41,134.45,134.39,0.17]
[1718893114546,20.0,134.45,134.37,0.34]
[1718893114766,20.0,134.51,134.38,7.4414]
[1718893114948,20.0,134.51,134.39,0.34]
[1718893115764,67.41,134.5,134.4,0.34]
[1718893115966,22.41,134.48,134.38,0.34]
[1718893116167,22.41,134.46,134.38,0.34]
[1718893116372,20.0,134.45,134.37,0.34]
[1718893116541,20.0,134.45,134.36,0.34]
[1718893116745,22.41,134.47,134.38,0.17]
[1718893116952,37.16497825,134.76,134.41,7.4395]
[1718893117147,20.0,134.52,134.44,7.4381]
[1718893117346,20.0,134.52,134.42,0.34]
[1718893117778,22.41,134.52,134.43,0.17]
[1718893117979,22.41,134.52,134.41,7.7795]
[1718893118273,22.41,134.52,134.41,0.34]
[1718893118476,22.41,134.52,134.41,7.7798]
[1718893118770,22.41,134.52,134.41,0.34]
[1718893118972,22.41,134.5,134.41,0.34]
[1718893119144,42.41,134.49,134.42,0.17]
[1718893119341,42.41,134.48,134.42,0.17]
[1718893119552,22.41,134.48,134.4,0.34]
[1718893119745,42.41,134.47,134.4,0.34]
[1718893119973,20.0,134.46,134.4,0.34]
[1718893120160,42.41,134.46,134.41,0.17]
[1718893120350,42.41,134.46,134.39,0.34]
[1718893120948,42.41,134.46,134.38,0.34]
[1718893121154,20.0,134.46,134.38,0.34]
[1718893121477,20.0,134.51,134.38,7.4413]
[1718893121654,20.0,134.51,134.39,1.00014325]
[1718893121851,20.0,134.51,134.4,7.44]
[1718893122049,42.41,134.51,134.42,7.439]
[1718893122269,42.41,134.51,134.41,0.34]
[1718893122855,42.41,134.51,134.41,7.7794]
[1718893123057,42.41,134.51,134.41,0.34]
[1718893128974,22.41,134.49,134.41,0.34]
[1718893129184,22.41,134.47,134.41,0.34]
[1718893129349,22.41,134.45,134.41,0.34]
[1718893129557,20.0,134.46,134.31,7.4454]
[1718893129558,22.41,134.43,134.31,7.4454]
[1718893129859,22.41,134.43,134.27,55.6739]
[1718893129860,22.41,134.41,134.3,23.0682]
[1718893130050,22.41,134.41,134.3,15.6228]
[1718893130255,20.0,134.4,134.34,7.4437]
[1718893130468,20.0,134.42,134.27,45.4939]
[1718893130667,20.0,134.46,134.37,7.4418]
[1718893130877,20.0,134.46,134.38,7.4415]
[1718893131086,20.0,134.5,134.36,18.6065]
[1718893131286,22.41,134.49,134.38,7.4415]
[1718893131476,22.41,134.47,134.38,7.4415]
[1718893131783,22.41,134.47,134.39,0.34]
[1718893132082,20.0,134.46,134.39,0.34]
[1718893132455,42.41,134.46,134.38,0.34]
[1718893132654,20.0,134.46,134.39,0.17]
[1718893132859,20.0,134.5,134.39,0.34]
[1718893133269,22.41,134.49,134.39,0.34]
[1718893133472,22.41,134.47,134.39,0.34]
[1718893133671,20.0,134.46,134.39,0.34]
[1718893133987,20.0,134.46,134.39,7.7809]
[1718893134162,20.0,134.5,134.43,7.4387]
[1718893134362,30.12925702,134.51,134.39,1.98607928]
[1718893134665,0.34,134.53,134.39,0.34]
[1718893134880,0.34,134.54,134.46,7.4369]
[1718893135475,0.34,134.54,134.45,18.5929]
[1718893135684,0.34,134.54,134.49,7.435]
[1718893135866,0.34,134.54,134.47,18.5904]
[1718893136062,0.34,134.54,134.51,7.434]
[1718893136281,0.34,134.54,134.52,1.4898929]
[1718893136454,0.34,134.54,134.5,7.4347]
[1718893137585,0.34,134.54,134.46,15.4024]
[1718893137586,0.34,134.54,134.48,7.4358]
[1718893137890,0.34,134.54,134.49,7.4354]
[1718893138360,0.34,134.54,134.5,7.4349]
[1718893138880,0.34,134.54,134.46,15.4024]
[1718893139184,0.34,134.54,134.43,25.46777099]
[1718893139388,0.34,134.54,134.43,16.4605]
[1718893139884,0.34,134.54,134.46,7.4368]
[1718893140092,0.17,134.53,134.43,16.4605]
[1718893140296,0.34,134.55,134.43,23.8988]
[1718893140579,0.34,134.55,134.41,13.8187]
[1718893141125,0.34,134.55,134.41,7.4396]
[1718893141290,0.34,134.55,134.4,7.7802]
[1718893141478,0.34,134.55,134.4,0.34]
[1718893141799,22.41,134.54,134.4,0.34]
[1718893141998,22.41,134.5,134.4,0.34]
[1718893142161,22.41,134.48,134.4,0.34]
[1718893142361,22.41,134.46,134.4,0.34]
[1718893142673,22.41,134.44,134.4,0.34]
[1718893142877,20.0,134.43,134.4,0.34]
[1718893143676,22.41,134.48,134.4,0.34]
[1718893143880,22.41,134.46,134.4,0.34]
[1718893144073,20.0,134.47,134.4,0.34]
[1718893144492,20.0,134.47,134.41,7.4395]
[1718893144660,0.17,134.51,134.4,0.34]
[1718893144862,0.17,134.5,134.4,0.34]
[1718893145064,0.34,134.5,134.42,7.4393]
[1718893145265,0.34,134.5,134.41,7.4396]
[1718893145486,0.34,134.5,134.4,0.34]
[1718893145689,0.34,134.5,134.42,7.4391]
[1718893146066,0.34,134.5,134.39,0.34]
[1718893146474,22.75,134.5,134.39,0.34]
[1718893146877,276.15,134.5,134.39,0.34]
[1718893147180,22.41,134.48,134.33,7.4442]
[1718893147394,22.41,134.46,134.33,7.4442]
[1718893147570,22.41,134.44,134.32,6.2718]
[1718893147768,0.34,134.43,134.33,0.80920663]
[1718893147968,22.41,134.42,134.32,7.4442]